[Event "The Elitserien 2024/25: round 1 - 3"]
[Site "Scandic Infra City, Kanalvagen 10, Upplands Vasby, Sweden"]
[Date "2024.10.05"]
[Round "2.5"]
[White "Lissang, Christopher"]
[Black "Jepson, Christian"]
[Result "0-1"]
[TimeControl "90 minutes for 40 moves + 30 minutes for the rest of the game + 30 seconds per move from move one."]
[WhiteTitle "FM"]
[BlackTitle "IM"]
[WhiteFideId "1709615"]
[BlackFideId "1701185"]
[WhiteElo "2332"]
[BlackElo "2400"]

1. Nf3 {[%clk 01:20:22]} {[%emt 00:10:27]} Nf6 {[%clk 01:29:57]} {[%emt
00:01:12]} 2. g3 {[%clk 01:20:39]} {[%emt 00:00:15]} c5 {[%clk 01:24:54]}
{[%emt 00:05:32]} 3. Bg2 {[%clk 01:19:42]} {[%emt 00:01:27]} d5 {[%clk
01:24:22]} {[%emt 00:01:02]} 4. O-O {[%clk 01:20:00]} {[%emt 00:00:12]} Nc6
{[%clk 01:24:27]} {[%emt 00:00:25]} 5. d4 {[%clk 01:17:50]} {[%emt 00:02:40]}
cxd4 {[%clk 01:23:29]} {[%emt 00:01:28]} 6. Nxd4 {[%clk 01:18:13]} {[%emt
00:00:06]} e5 {[%clk 01:23:48]} {[%emt 00:00:12]} 7. Nxc6 {[%clk 01:18:32]}
{[%emt 00:00:12]} bxc6 {[%clk 01:24:11]} {[%emt 00:00:05]} 8. c4 {[%clk
01:17:24]} {[%emt 00:01:39]} Be6 {[%clk 01:23:29]} {[%emt 00:01:12]} 9. Qa4
{[%clk 01:07:33]} {[%emt 00:10:21]} Qd7 {[%clk 01:23:45]} {[%emt 00:00:14]} 10.
Rd1 {[%clk 01:04:55]} {[%emt 00:03:08]} Rc8 {[%clk 01:20:49]} {[%emt 00:03:26]}
11. e3 {[%clk 00:41:49]} {[%emt 00:23:35]} e4 {[%clk 00:58:54]} {[%emt
00:22:26]} 12. cxd5 {[%clk 00:37:33]} {[%emt 00:04:46]} cxd5 {[%clk 00:59:16]}
{[%emt 00:00:08]} 13. Qxd7+ {[%clk 00:37:58]} {[%emt 00:00:05]} Kxd7 {[%clk
00:48:01]} {[%emt 00:11:45]} 14. Nd2 {[%clk 00:33:35]} {[%emt 00:04:52]} Bg4
{[%clk 00:45:36]} {[%emt 00:02:55]} 15. f3 {[%clk 00:32:58]} {[%emt 00:01:07]}
exf3 {[%clk 00:45:58]} {[%emt 00:00:09]} 16. Nxf3 {[%clk 00:32:40]} {[%emt
00:00:47]} Bd6 {[%clk 00:45:16]} {[%emt 00:01:12]} 17. e4 {[%clk 00:22:35]}
{[%emt 00:10:36]} Rhe8 {[%clk 00:28:51]} {[%emt 00:16:54]} 18. exd5 {[%clk
00:14:12]} {[%emt 00:08:53]} Re2 {[%clk 00:27:08]} {[%emt 00:02:13]} 19. Bf4
{[%clk 00:08:04]} {[%emt 00:06:38]} Rcc2 {[%clk 00:25:48]} {[%emt 00:01:51]} 20.
Ne1 {[%clk 00:06:20]} {[%emt 00:02:13]} Rxg2+ {[%clk 00:04:42]} {[%emt
00:21:37]} 21. Nxg2 {[%clk 00:06:45]} {[%emt 00:00:05]} Bxd1 {[%clk 00:04:54]}
{[%emt 00:00:17]} 22. Bxd6 {[%clk 00:04:16]} {[%emt 00:03:00]} Kxd6 {[%clk
00:03:10]} {[%emt 00:02:14]} 23. Rxd1 {[%clk 00:04:35]} {[%emt 00:00:10]} Rxb2
{[%clk 00:03:22]} {[%emt 00:00:18]} 24. a3 {[%clk 00:02:29]} {[%emt 00:02:37]}
Ng4 {[%clk 00:02:57]} {[%emt 00:00:54]} 25. Rc1 {[%clk 00:00:45]} {[%emt
00:02:15]} Ra2 {[%clk 00:02:17]} {[%emt 00:01:10]} 26. h3 {[%clk 00:00:32]}
{[%emt 00:00:43]} Ne5 {[%clk 00:02:27]} {[%emt 00:00:20]} 27. Rc3 {[%clk
00:00:37]} {[%emt 00:00:25]} Kxd5 {[%clk 00:02:23]} {[%emt 00:00:33]} 28. Nf4+
{[%clk 00:00:32]} {[%emt 00:00:35]} Ke4 {[%clk 00:02:11]} {[%emt 00:00:42]} 29.
Kf1 {[%clk 00:00:32]} {[%emt 00:00:30]} a5 {[%clk 00:01:20]} {[%emt 00:01:22]}
30. Rb3 {[%clk 00:00:32]} {[%emt 00:00:30]} Ra1+ {[%clk 00:01:03]} {[%emt
00:00:47]} 31. Kf2 {[%clk 00:00:40]} {[%emt 00:00:21]} Ra2+ {[%clk 00:01:29]}
{[%emt 00:00:05]} 32. Kf1 {[%clk 00:01:00]} {[%emt 00:00:09]} Nc4 {[%clk
00:01:06]} {[%emt 00:00:54]} 33. Rb7 {[%clk 00:00:32]} {[%emt 00:00:58]} Kf3
{[%clk 00:01:09]} {[%emt 00:00:27]} 34. Kg1 {[%clk 00:00:31]} {[%emt 00:00:30]}
Kxg3 {[%clk 00:01:09]} {[%emt 00:00:30]} 35. Nh5+ {[%clk 00:00:40]} {[%emt
00:00:20]} Kxh3 {[%clk 00:01:09]} {[%emt 00:00:32]} 36. Rxf7 {[%clk 00:00:51]}
{[%emt 00:00:19]} g6 {[%clk 00:01:01]} {[%emt 00:00:37]} 37. Nf6 {[%clk
00:00:37]} {[%emt 00:00:43]} h5 {[%clk 00:01:17]} {[%emt 00:00:15]} 38. Nd5
{[%clk 00:00:31]} {[%emt 00:00:37]} Ne5 {[%clk 00:01:02]} {[%emt 00:00:45]} 39.
Re7 {[%clk 00:00:31]} {[%emt 00:00:30]} Nf3+ {[%clk 00:01:04]} {[%emt
00:00:27]} 40. Kf1 {[%clk 00:00:57]} {[%emt 00:00:04]} Kg3 {[%clk 00:01:26]}
{[%emt 00:00:08]} 0-1

[Event "The Elitserien 2024/25: round 1 - 3"]
[Site "Scandic Infra City, Kanalvagen 10, Upplands Vasby, Sweden"]
[Date "2024.10.05"]
[Round "2.6"]
[White "Lindgren, Philip"]
[Black "Tuomainen, Felix"]
[Result "1-0"]
[TimeControl "90 minutes for 40 moves + 30 minutes for the rest of the game + 30 seconds per move from move one."]
[WhiteTitle "IM"]
[BlackTitle "FM"]
[WhiteFideId "1713230"]
[BlackFideId "1720813"]
[WhiteElo "2379"]
[BlackElo "2247"]

1. d4 {[%clk 01:30:57]} {[%emt 00:00:02]} Nf6 {[%clk 01:26:21]} {[%emt
00:04:40]} 2. Nf3 {[%clk 01:30:20]} {[%emt 00:01:06]} g6 {[%clk 01:25:46]}
{[%emt 00:01:05]} 3. Bg5 {[%clk 01:29:14]} {[%emt 00:01:36]} Bg7 {[%clk
01:25:56]} {[%emt 00:00:21]} 4. Nbd2 {[%clk 01:29:12]} {[%emt 00:00:31]} O-O
{[%clk 01:22:23]} {[%emt 00:04:03]} 5. e3 {[%clk 01:27:02]} {[%emt 00:02:40]}
d6 {[%clk 01:21:26]} {[%emt 00:01:27]} 6. Bc4 {[%clk 01:23:26]} {[%emt
00:04:06]} a6 {[%clk 01:13:37]} {[%emt 00:08:20]} 7. O-O {[%clk 01:22:27]}
{[%emt 00:01:28]} h6 {[%clk 01:10:46]} {[%emt 00:03:22]} 8. Bh4 {[%clk
01:21:08]} {[%emt 00:01:49]} g5 {[%clk 01:10:47]} {[%emt 00:00:29]} 9. Bg3
{[%clk 01:20:44]} {[%emt 00:00:53]} Nh5 {[%clk 01:09:55]} {[%emt 00:01:22]} 10.
c3 {[%clk 01:09:55]} {[%emt 00:11:19]} Nc6 {[%clk 01:07:05]} {[%emt 00:03:20]}
11. e4 {[%clk 01:03:47]} {[%emt 00:06:37]} Bg4 {[%clk 01:01:55]} {[%emt
00:05:40]} 12. Re1 {[%clk 00:58:23]} {[%emt 00:05:55]} Nxg3 {[%clk 01:02:00]}
{[%emt 00:00:24]} 13. hxg3 {[%clk 00:58:29]} {[%emt 00:00:25]} e5 {[%clk
01:01:41]} {[%emt 00:00:49]} 14. dxe5 {[%clk 00:56:38]} {[%emt 00:02:21]} Nxe5
{[%clk 01:01:46]} {[%emt 00:00:25]} 15. Be2 {[%clk 00:56:44]} {[%emt 00:00:23]}
Bxf3 {[%clk 00:58:24]} {[%emt 00:03:53]} 16. gxf3 {[%clk 00:49:34]} {[%emt
00:07:39]} Kh8 {[%clk 00:50:38]} {[%emt 00:08:16]} 17. Nf1 {[%clk 00:40:33]}
{[%emt 00:09:32]} f5 {[%clk 00:50:04]} {[%emt 00:01:03]} 18. Ne3 {[%clk
00:40:57]} {[%emt 00:00:07]} f4 {[%clk 00:46:49]} {[%emt 00:03:45]} 19. Nf5
{[%clk 00:41:01]} {[%emt 00:00:26]} Qf6 {[%clk 00:41:17]} {[%emt 00:06:00]} 20.
Qb3 {[%clk 00:33:31]} {[%emt 00:08:02]} g4 {[%clk 00:37:01]} {[%emt 00:04:47]}
21. fxg4 {[%clk 00:31:59]} {[%emt 00:02:01]} f3 {[%clk 00:36:57]} {[%emt
00:00:34]} 22. Bf1 {[%clk 00:19:24]} {[%emt 00:13:04]} Qg5 {[%clk 00:34:45]}
{[%emt 00:02:40]} 23. Bh3 {[%clk 00:09:23]} {[%emt 00:10:33]} Nxg4 {[%clk
00:33:03]} {[%emt 00:02:13]} 24. Bxg4 {[%clk 00:05:32]} {[%emt 00:04:21]} Qxg4
{[%clk 00:33:29]} {[%emt 00:00:04]} 25. Re3 {[%clk 00:05:40]} {[%emt 00:00:22]}
Be5 {[%clk 00:32:07]} {[%emt 00:01:50]} 26. Qd1 {[%clk 00:05:25]} {[%emt
00:00:46]} d5 {[%clk 00:26:57]} {[%emt 00:05:41]} 27. Qxd5 {[%clk 00:05:47]}
{[%emt 00:00:09]} Rae8 {[%clk 00:26:24]} {[%emt 00:01:03]} 28. Qd1 {[%clk
00:04:56]} {[%emt 00:01:20]} Bd6 {[%clk 00:21:31]} {[%emt 00:05:23]} 29. Qxf3
{[%clk 00:04:24]} {[%emt 00:01:02]} Qg5 {[%clk 00:21:41]} {[%emt 00:00:20]} 30.
Rae1 {[%clk 00:03:22]} {[%emt 00:01:31]} Bc5 {[%clk 00:21:57]} {[%emt
00:00:15]} 31. R3e2 {[%clk 00:03:25]} {[%emt 00:00:27]} Re5 {[%clk 00:14:32]}
{[%emt 00:07:55]} 32. Kg2 {[%clk 00:03:02]} {[%emt 00:00:54]} Rf6 {[%clk
00:13:32]} {[%emt 00:01:30]} 33. Qd3 {[%clk 00:02:26]} {[%emt 00:01:03]} Qg8
{[%clk 00:12:50]} {[%emt 00:01:11]} 34. b4 {[%clk 00:01:32]} {[%emt 00:01:27]}
Bd6 {[%clk 00:12:12]} {[%emt 00:01:08]} 35. f4 {[%clk 00:01:09]} {[%emt
00:00:53]} 1-0

[Event "The Elitserien 2024/25: round 1 - 3"]
[Site "Scandic Infra City, Kanalvagen 10, Upplands Vasby, Sweden"]
[Date "2024.10.05"]
[Round "2.7"]
[White "Olund, Joar"]
[Black "Brynell, Stellan"]
[Result "1-0"]
[TimeControl "90 minutes for 40 moves + 30 minutes for the rest of the game + 30 seconds per move from move one."]
[WhiteTitle "FM"]
[BlackTitle "GM"]
[WhiteFideId "1714848"]
[BlackFideId "1700219"]
[WhiteElo "2368"]
[BlackElo "2368"]

1. d4 {[%clk 01:13:13]} {[%emt 00:17:46]} e6 {[%clk 01:30:30]} {[%emt
00:00:31]} 2. c4 {[%clk 01:13:31]} {[%emt 00:00:13]} Nf6 {[%clk 01:30:50]}
{[%emt 00:00:08]} 3. Nf3 {[%clk 01:13:57]} {[%emt 00:00:05]} b6 {[%clk
01:31:01]} {[%emt 00:00:19]} 4. g3 {[%clk 01:13:45]} {[%emt 00:00:43]} Bb7
{[%clk 01:30:48]} {[%emt 00:00:43]} 5. Bg2 {[%clk 01:13:08]} {[%emt 00:01:06]}
Be7 {[%clk 01:31:09]} {[%emt 00:00:08]} 6. O-O {[%clk 01:13:33]} {[%emt
00:00:07]} O-O {[%clk 01:31:31]} {[%emt 00:00:06]} 7. d5 {[%clk 01:13:52]}
{[%emt 00:00:13]} Na6 {[%clk 01:24:26]} {[%emt 00:07:35]} 8. Nd4 {[%clk
01:10:13]} {[%emt 00:04:08]} exd5 {[%clk 01:16:16]} {[%emt 00:08:40]} 9. Nc3
{[%clk 01:09:03]} {[%emt 00:01:40]} c6 {[%clk 01:10:33]} {[%emt 00:06:12]} 10.
cxd5 {[%clk 01:09:26]} {[%emt 00:00:08]} Nxd5 {[%clk 01:10:50]} {[%emt
00:00:14]} 11. Nxd5 {[%clk 01:09:11]} {[%emt 00:00:45]} cxd5 {[%clk 01:11:13]}
{[%emt 00:00:05]} 12. Nf5 {[%clk 01:08:52]} {[%emt 00:00:50]} Bf6 {[%clk
01:10:15]} {[%emt 00:01:28]} 13. Bf4 {[%clk 00:47:47]} {[%emt 00:21:34]} Bxb2
{[%clk 01:07:40]} {[%emt 00:03:05]} 14. Rb1 {[%clk 00:47:53]} {[%emt 00:00:25]}
Bf6 {[%clk 01:06:49]} {[%emt 00:01:21]} 15. Rc1 {[%clk 00:43:43]} {[%emt
00:04:41]} Bc6 {[%clk 01:02:42]} {[%emt 00:04:35]} 16. Bxd5 {[%clk 00:42:18]}
{[%emt 00:01:56]} Bg5 {[%clk 00:40:46]} {[%emt 00:22:26]} 17. Bxc6 {[%clk
00:31:30]} {[%emt 00:11:19]} dxc6 {[%clk 00:39:44]} {[%emt 00:01:32]} 18. Qxd8
{[%clk 00:31:47]} {[%emt 00:00:09]} Bxd8 {[%clk 00:40:10]} {[%emt 00:00:07]} 19.
Rxc6 {[%clk 00:32:09]} {[%emt 00:00:08]} Re8 {[%clk 00:36:21]} {[%emt
00:04:18]} 20. Be3 {[%clk 00:27:44]} {[%emt 00:04:56]} Nb4 {[%clk 00:27:26]}
{[%emt 00:09:24]} 21. Rc4 {[%clk 00:27:01]} {[%emt 00:01:14]} Nd5 {[%clk
00:26:48]} {[%emt 00:01:07]} 22. Bd4 {[%clk 00:25:34]} {[%emt 00:01:56]} Bf6
{[%clk 00:26:19]} {[%emt 00:01:00]} 23. Re1 {[%clk 00:21:03]} {[%emt 00:05:02]}
g6 {[%clk 00:24:19]} {[%emt 00:02:30]} 24. Bxf6 {[%clk 00:19:40]} {[%emt
00:01:54]} Nxf6 {[%clk 00:24:35]} {[%emt 00:00:13]} 25. Nd4 {[%clk 00:19:46]}
{[%emt 00:00:25]} Rac8 {[%clk 00:23:19]} {[%emt 00:01:44]} 26. Rec1 {[%clk
00:19:37]} {[%emt 00:00:39]} Rxc4 {[%clk 00:23:04]} {[%emt 00:00:45]} 27. Rxc4
{[%clk 00:19:51]} {[%emt 00:00:17]} Nd5 {[%clk 00:22:01]} {[%emt 00:01:33]} 28.
Kg2 {[%clk 00:14:59]} {[%emt 00:05:21]} Re7 {[%clk 00:16:24]} {[%emt 00:06:07]}
29. Kf3 {[%clk 00:14:45]} {[%emt 00:00:44]} Rc7 {[%clk 00:16:26]} {[%emt
00:00:29]} 30. Rxc7 {[%clk 00:13:35]} {[%emt 00:01:40]} Nxc7 {[%clk 00:16:54]}
{[%emt 00:00:02]} 31. Ke4 {[%clk 00:13:39]} {[%emt 00:00:26]} f6 {[%clk
00:17:05]} {[%emt 00:00:19]} 32. Nc6 {[%clk 00:13:30]} {[%emt 00:00:39]} Kf7
{[%clk 00:04:50]} {[%emt 00:12:45]} 33. Nxa7 {[%clk 00:12:56]} {[%emt
00:01:04]} Ke6 {[%clk 00:05:12]} {[%emt 00:00:07]} 34. Kd4 {[%clk 00:12:35]}
{[%emt 00:00:52]} Kd6 {[%clk 00:05:07]} {[%emt 00:00:34]} 35. Kc4 {[%clk
00:11:27]} {[%emt 00:01:38]} Ne6 {[%clk 00:04:58]} {[%emt 00:00:39]} 36. Nb5+
{[%clk 00:11:10]} {[%emt 00:00:48]} Ke5 {[%clk 00:04:53]} {[%emt 00:00:34]} 37.
Nc3 {[%clk 00:09:17]} {[%emt 00:02:23]} Nc7 {[%clk 00:04:58]} {[%emt 00:00:25]}
38. f4+ {[%clk 00:09:13]} {[%emt 00:00:35]} Ke6 {[%clk 00:04:52]} {[%emt
00:00:35]} 39. e4 {[%clk 00:09:38]} {[%emt 00:00:06]} g5 {[%clk 00:04:39]}
{[%emt 00:00:43]} 40. Nd5 {[%clk 00:06:22]} {[%emt 00:03:46]} b5+ {[%clk
00:02:06]} {[%emt 00:03:02]} 41. Kc5 {[%clk 00:05:04]} {[%emt 00:01:48]} Ne8
{[%clk 00:29:34]} {[%emt 00:03:02]} 42. Kc6 {[%clk 00:33:02]} {[%emt 00:02:33]}
gxf4 {[%clk 00:28:28]} {[%emt 00:01:36]} 43. gxf4 {[%clk 00:32:59]} {[%emt
00:00:33]} Nd6 {[%clk 00:28:03]} {[%emt 00:00:54]} 44. Nc7 {[%clk 00:33:01]}
{[%emt 00:00:28]} Ke7 {[%clk 00:27:45]} {[%emt 00:00:48]} 45. Nd5+ {[%clk
00:33:29]} {[%emt 00:00:03]} Ke6 {[%clk 00:28:07]} {[%emt 00:00:07]} 46. Nxf6
{[%clk 00:33:53]} {[%emt 00:00:07]} 1-0

[Event "The Elitserien 2024/25: round 1 - 3"]
[Site "Scandic Infra City, Kanalvagen 10, Upplands Vasby, Sweden"]
[Date "2024.10.05"]
[Round "2.8"]
[White "Carlsson, Daniel"]
[Black "Thorn, Eric"]
[Result "1-0"]
[TimeControl "90 minutes for 40 moves + 30 minutes for the rest of the game + 30 seconds per move from move one."]
[BlackTitle "FM"]
[WhiteFideId "1703021"]
[BlackFideId "1710729"]
[WhiteElo "2289"]
[BlackElo "2351"]

1. e4 {[%clk 01:30:37]} {[%emt 00:00:23]} e5 {[%clk 01:28:30]} {[%emt
00:02:28]} 2. Nf3 {[%clk 01:31:00]} {[%emt 00:00:09]} Nc6 {[%clk 01:28:54]}
{[%emt 00:00:05]} 3. Bb5 {[%clk 01:31:28]} {[%emt 00:00:03]} a6 {[%clk
01:29:12]} {[%emt 00:00:11]} 4. Ba4 {[%clk 01:29:00]} {[%emt 00:02:59]} Bc5
{[%clk 01:29:36]} {[%emt 00:00:06]} 5. O-O {[%clk 01:29:11]} {[%emt 00:00:19]}
Nge7 {[%clk 01:29:58]} {[%emt 00:00:08]} 6. c3 {[%clk 01:29:23]} {[%emt
00:00:18]} Ng6 {[%clk 01:30:20]} {[%emt 00:00:07]} 7. d4 {[%clk 01:29:43]}
{[%emt 00:00:11]} Ba7 {[%clk 01:30:44]} {[%emt 00:00:06]} 8. Bxc6 {[%clk
01:29:07]} {[%emt 00:01:06]} dxc6 {[%clk 01:30:39]} {[%emt 00:00:34]} 9. Nxe5
{[%clk 01:29:09]} {[%emt 00:00:29]} Nxe5 {[%clk 01:31:02]} {[%emt 00:00:08]} 10.
dxe5 {[%clk 01:29:35]} {[%emt 00:00:03]} Qe7 {[%clk 01:31:23]} {[%emt
00:00:09]} 11. Qh5 {[%clk 01:26:12]} {[%emt 00:03:53]} h6 {[%clk 01:26:28]}
{[%emt 00:05:25]} 12. Nd2 {[%clk 01:12:51]} {[%emt 00:13:51]} g6 {[%clk
01:11:49]} {[%emt 00:15:09]} 13. Qf3 {[%clk 00:52:21]} {[%emt 00:21:01]} Qxe5
{[%clk 01:10:18]} {[%emt 00:02:00]} 14. Nc4 {[%clk 00:51:03]} {[%emt 00:01:47]}
Qe6 {[%clk 00:57:57]} {[%emt 00:12:52]} 15. Qg3 {[%clk 00:31:46]} {[%emt
00:19:47]} Qe7 {[%clk 00:52:07]} {[%emt 00:06:20]} 16. b3 {[%clk 00:27:30]}
{[%emt 00:04:45]} Be6 {[%clk 00:44:43]} {[%emt 00:07:54]} 17. Ba3 {[%clk
00:27:30]} {[%emt 00:00:30]} c5 {[%clk 00:45:08]} {[%emt 00:00:05]} 18. Rad1
{[%clk 00:24:17]} {[%emt 00:03:45]} O-O {[%clk 00:39:15]} {[%emt 00:06:22]} 19.
Ne5 {[%clk 00:18:36]} {[%emt 00:06:11]} Kh7 {[%clk 00:26:56]} {[%emt 00:12:49]}
20. c4 {[%clk 00:16:58]} {[%emt 00:02:08]} Rad8 {[%clk 00:23:04]} {[%emt
00:04:21]} 21. Qe3 {[%clk 00:15:29]} {[%emt 00:02:00]} Rxd1 {[%clk 00:18:35]}
{[%emt 00:04:59]} 22. Rxd1 {[%clk 00:15:57]} {[%emt 00:00:02]} Rd8 {[%clk
00:19:01]} {[%emt 00:00:04]} 23. Rd2 {[%clk 00:11:05]} {[%emt 00:05:22]} Rxd2
{[%clk 00:08:44]} {[%emt 00:10:46]} 24. Qxd2 {[%clk 00:11:31]} {[%emt
00:00:05]} Qd6 {[%clk 00:09:01]} {[%emt 00:00:13]} 25. Nd3 {[%clk 00:05:55]}
{[%emt 00:06:06]} f5 {[%clk 00:04:42]} {[%emt 00:04:48]} 26. Bc1 {[%clk
00:05:46]} {[%emt 00:00:40]} g5 {[%clk 00:04:05]} {[%emt 00:01:06]} 27. e5
{[%clk 00:04:45]} {[%emt 00:01:32]} Qd4 {[%clk 00:03:07]} {[%emt 00:01:26]} 28.
Bb2 {[%clk 00:04:56]} {[%emt 00:00:20]} Qd7 {[%clk 00:03:31]} {[%emt 00:00:06]}
29. h4 {[%clk 00:04:11]} {[%emt 00:01:16]} f4 {[%clk 00:02:10]} {[%emt
00:01:51]} 30. Qe2 {[%clk 00:01:58]} {[%emt 00:02:43]} Bg4 {[%clk 00:01:15]}
{[%emt 00:01:25]} 31. f3 {[%clk 00:01:41]} {[%emt 00:00:47]} Bf5 {[%clk
00:01:43]} {[%emt 00:00:01]} 32. Nf2 {[%clk 00:01:51]} {[%emt 00:00:21]} Bb6
{[%clk 00:00:37]} {[%emt 00:01:36]} 33. Ne4 {[%clk 00:02:13]} {[%emt 00:00:08]}
Qe7 {[%clk 00:00:39]} {[%emt 00:00:28]} 34. Nf6+ {[%clk 00:02:24]} {[%emt
00:00:19]} Kg6 {[%clk 00:00:37]} {[%emt 00:00:31]} 35. Nd5 {[%clk 00:02:10]}
{[%emt 00:00:44]} Qe6 {[%clk 00:00:55]} {[%emt 00:00:12]} 36. hxg5 {[%clk
00:02:21]} {[%emt 00:00:20]} hxg5 {[%clk 00:01:23]} {[%emt 00:00:02]} 37. g4
{[%clk 00:02:29]} {[%emt 00:00:22]} fxg3 {[%clk 00:00:54]} {[%emt 00:00:59]} 38.
Qe3 {[%clk 00:02:43]} {[%emt 00:00:16]} Bb1 {[%clk 00:00:34]} {[%emt 00:00:50]}
39. Bc1 {[%clk 00:02:50]} {[%emt 00:00:23]} Qf5 {[%clk 00:00:35]} {[%emt
00:00:29]} 40. Ne7+ {[%clk 00:03:14]} {[%emt 00:00:05]} 1-0